fUSD/lending_fUSD_20240425
["ID","MTS","AMOUNT","RATE_DAILY","PERIOD"]
[323526929,1714069848550,-814.54,0.00011232,2]
[323526930,1714069848559,-500.0,0.00011232,2]
[323526931,1714069848569,-500.0,0.00011232,2]
[323526932,1714069848578,-311.92,0.00011232,2]
[323526933,1714069848587,-500.0,0.00011232,2]
[323526934,1714069848597,-500.0,0.00011232,2]
[323526935,1714069848606,-1772.39,0.00011232,2]
[323526936,1714069848616,-657.47,0.00011232,2]
[323526937,1714069848625,-19266.34,0.00011232,2]
[323526938,1714069848635,-500.0,0.00011232,2]
[323526939,1714069848644,-756.42,0.00011232,2]
[323526940,1714069848653,-1824.38,0.00011232,2]
[323526941,1714069848663,-7009.55,0.00011232,2]
[323526942,1714069848672,-500.0,0.00011232,2]
[323526943,1714069848681,-507.55,0.00011232,2]
[323526944,1714069848691,-737.86,0.00011232,2]
[323526945,1714069848701,-500.0,0.00011232,2]
[323526946,1714069848710,-500.0,0.00011232,2]
[323526947,1714069848720,-1005.97,0.00011232,2]
[323526948,1714069848729,-500.0,0.00011232,2]
[323526949,1714069848738,-1052.34,0.00011232,2]
[323526950,1714069848748,-500.0,0.00011232,2]
[323526951,1714069848757,-500.0,0.00011232,2]
[323526952,1714069848767,-965.07,0.00011232,2]
[323526953,1714069848776,-500.0,0.00011232,2]
[323526954,1714069848785,-7275.76,0.00011232,2]
[323526955,1714069848795,-716.11,0.00011232,2]
[323526956,1714069848804,-1387.85,0.00011232,2]
[323526957,1714069848813,-715.72,0.00011232,2]
[323526958,1714069848822,-500.0,0.00011232,2]
[323526959,1714069848831,-500.0,0.00011232,2]
[323526960,1714069848839,-1126.0,0.00011232,2]
[323526961,1714069848848,-500.0,0.00011232,2]
[323526962,1714069848857,-500.0,0.00011232,2]
[323526963,1714069848868,-781.71,0.00011232,2]
[323526964,1714069848876,-438.72,0.00011232,2]
[323526965,1714069848884,-500.0,0.00011232,2]
[323526966,1714069848893,-833.49,0.00011232,2]
[323526967,1714069848903,-682.44,0.00011232,2]
[323526968,1714069848912,-500.0,0.00011232,2]
[323526969,1714069848921,-18.19755201,0.00011232,2]
[323526970,1714069848953,-481.80244799,0.00011232,2]
[323526971,1714069848962,-523.3,0.00011232,2]
[323526972,1714069848971,-500.0,0.00011232,2]
[323526973,1714069848980,-5295.08,0.00011232,2]
[323526974,1714069848989,-378.54,0.00011232,2]
[323526975,1714069848999,-1280.4,0.00011232,2]
[323526976,1714069849008,-500.0,0.00011232,2]
[323526977,1714069849017,-500.0,0.00011232,2]
[323526978,1714069849027,-7735.22464679,0.00011232,2]
[323526979,1714069849047,-6498.69983676,0.00011232,2]
[323526980,1714069849058,-668.43,0.00011232,2]
[323526981,1714069849070,-1350.22001192,0.00011232,2]
[323526988,1714069996683,-1774.01,8.691e-05,2]
[323526989,1714069996706,-174.50586702,9.394e-05,2]
[323526990,1714069996732,-1000.0,9.395e-05,2]
[323526991,1714069996755,-165.62,9.395e-05,2]
[323526992,1714069996777,-495.86413298,0.0001057,2]
[323526993,1714070035628,-323.93578704,0.00010569,2]
[323526994,1714070035652,-504.13586702,0.0001057,2]
[323526995,1714070035676,-250.0,0.00010685,2]
[323526996,1714070035699,-257.86064903,0.00010755,2]
[323526997,1714070035726,-218.82,0.00010756,2]
[323526998,1714070035750,-150.0,0.00010828,2]
[323526999,1714070035774,-645.24769691,0.00010829,2]
[323527000,1714070068192,-731.0,0.00010728,2]
[323527001,1714070115808,-5254.0,0.00010728,2]
[323527002,1714070175690,-193.31828694,0.00010628,2]
[323527003,1714070175714,-193.31828688,0.00010655,2]
[323527004,1714070175736,-193.31828688,0.00010681,2]
[323527005,1714070175760,-323.93578704,0.00010707,2]
[323527006,1714070175784,-257.86064903,0.00010707,2]
[323527007,1714070175809,-193.31828688,0.00010708,2]
[323527008,1714070175835,-2477.93041635,0.00010728,2]
[323527009,1714070222624,-868.0,0.00010727,2]
[323527010,1714070268434,-601.0,0.00010726,2]
[323527011,1714070268459,-2132.0,0.00010727,2]
[323527012,1714070268482,-4799.0,0.00010728,2]
[323527014,1714070348941,-150.0,0.0001011,2]
[323527015,1714070348966,-8503.0,0.00010111,2]
[323527016,1714070396178,-1305.0,0.00010111,2]
[323527017,1714070432167,-714.0,0.00010011,2]
[323527018,1714070456940,1685.3,8.219e-05,2]
[323527019,1714070629797,344.38092617,8.219e-05,2]
[323527020,1714070979724,1601.03,8.219e-05,2]
[323527032,1714071032081,-790.13,9.679e-05,2]
[323527034,1714071032092,-1294.31423164,9.749e-05,2]
[323527035,1714071032101,-60.01301704,9.749e-05,2]
[323527036,1714071032113,-89.98698296,9.749e-05,2]
[323527037,1714071032122,-711.09291946,9.75e-05,2]
[323527038,1714071032134,-722.35830682,9.75e-05,2]
[323527039,1714071032153,-280.83854349,9.75e-05,2]
[323527040,1714071032164,-521.97670531,9.75e-05,2]
[323527041,1714071032176,-4869.87206032,9.75e-05,2]
[323527042,1714071032188,-1404.69300925,9.75e-05,2]
[323527043,1714071032200,-8437.83980028,9.75e-05,2]
[323527044,1714071032211,-5142.07172595,9.75e-05,2]
[323527045,1714071032253,-479.84771151,9.75e-05,2]
[323527046,1714071032265,-1329.40921761,9.75e-05,2]
[323527047,1714071032275,-1088.73168239,9.79e-05,2]
[323527048,1714071032315,-230.36191761,9.79e-05,2]
[323527049,1714071032325,-69.62808239,9.891e-05,2]
[323527050,1714071032374,-334.64308471,9.891e-05,2]
[323527051,1714071032384,-178.78,9.892e-05,2]
[323527052,1714071032394,-225.26,9.916e-05,2]
[323527053,1714071032403,-151.18,9.938e-05,2]
[323527054,1714071032413,-209.87,9.973e-05,2]
[323527055,1714071032422,-151.11911555,0.0001,2]
[323527056,1714071032432,-2992.99187051,0.000101,2]
[323527062,1714071038220,-9335.71543156,0.000101,2]
[323527063,1714071038230,-150.99,0.000101,2]
[323527064,1714071038239,-22445.95947493,0.0001011,2]
[323527065,1714071038249,-408.61554877,0.00010111,2]
[323527066,1714071038259,-179.7000076,0.00010111,2]
[323527067,1714071038268,-298.81932009,0.00010111,2]
[323527068,1714071038277,-250.0,0.00010111,2]
[323527069,1714071038287,-4470.04,0.00010111,2]
[323527070,1714071038296,-500.0,0.00010111,3]
[323527071,1714071038305,-165.24,0.00010111,2]
[323527072,1714071038314,-1601.03,0.0001046,2]
[323527073,1714071038323,-283.9183,0.00010627,2]
[323527074,1714071038333,-48717.78631992,0.00010727,2]
[323527075,1714071038342,-234.02253581,0.00010728,2]
[323527076,1714071038351,-193.31828688,0.00010734,2]
[323527077,1714071038361,-193.31828688,0.00010761,2]
[323527078,1714071038370,-7362.54,0.00010761,2]
[323527079,1714071038380,-193.31828688,0.00010787,2]
[323527080,1714071038389,-193.31828688,0.00010814,2]
[323527081,1714071038399,-193.31828688,0.0001084,2]
[323527082,1714071038409,-350.0,0.00010858,2]
[323527083,1714071038418,-1000.0,0.00010858,2]
[323527084,1714071038428,-8457.7746,0.00010858,2]
[323527085,1714071038438,-61262.4856,0.00010858,2]
[323527086,1714071038447,-594.7478,0.00010858,2]
[323527087,1714071038457,-7500.0,0.00010858,2]
[323527088,1714071038466,-193.31828688,0.00010867,2]
[323527089,1714071038475,-790.13,0.00010889,2]
[323527090,1714071038484,-193.31828688,0.00010893,2]
[323527091,1714071038497,-900.0,0.000109,3]
[323527092,1714071038506,-600.0,0.000109,3]
[323527093,1714071038515,-193.31828688,0.0001092,2]
[323527094,1714071038524,-193.31828688,0.00010946,2]
[323527095,1714071038533,-188.03206054,0.00010956,2]
[323527096,1714071038542,-2167.18919933,0.00010957,2]
[323527097,1714071038552,-500.0,0.00010958,2]
[323527098,1714071038560,-500.0,0.00010958,2]
[323527099,1714071038571,-500.0,0.00010958,2]
[323527100,1714071038580,-500.0,0.00010958,2]
[323527101,1714071038590,-500.0,0.00010958,2]
[323527102,1714071038599,-500.0,0.00010958,2]
[323527103,1714071038608,-500.0,0.00010958,2]
[323527104,1714071038617,-500.0,0.00010958,2]
[323527105,1714071038627,-500.0,0.00010958,2]
[323527106,1714071038636,-500.0,0.00010958,2]
[323527107,1714071038645,-500.0,0.00010958,2]
[323527108,1714071038654,-610.45,0.00010958,2]
[323527109,1714071038913,-500.0,0.00010958,2]
[323527110,1714071038923,-500.0,0.00010958,2]
[323527111,1714071038932,-500.0,0.00010958,2]
[323527112,1714071038942,-500.0,0.00010958,2]
[323527113,1714071038951,-500.0,0.00010958,2]
[323527114,1714071038961,-649.73,0.00010958,2]
[323527115,1714071038970,-500.0,0.00010958,2]
[323527116,1714071038979,-500.0,0.00010958,2]
[323527117,1714071038988,-500.0,0.00010958,2]
[323527118,1714071038997,-500.0,0.00010958,2]
[323527119,1714071039006,-688.12,0.00010958,2]
[323527120,1714071039016,-500.0,0.00010958,2]
[323527121,1714071039025,-779.77,0.00010958,2]
[323527122,1714071039034,-500.0,0.00010958,2]
[323527123,1714071039044,-695.13,0.00010958,2]
[323527124,1714071039053,-500.0,0.00010958,2]
[323527125,1714071039062,-500.0,0.00010958,2]
[323527126,1714071039072,-539.24,0.00010958,2]
[323527127,1714071039081,-500.0,0.00010958,2]
[323527128,1714071039090,-500.0,0.00010958,2]
[323527129,1714071039098,-681.29,0.00010958,2]
[323527130,1714071039107,-500.0,0.00010958,2]
[323527131,1714071039117,-500.0,0.00010958,2]
[323527132,1714071039126,-634.39,0.00010958,2]
[323527133,1714071039136,-500.0,0.00010958,2]
[323527134,1714071039145,-500.0,0.00010958,2]
[323527135,1714071039154,-500.0,0.00010958,2]
[323527136,1714071039163,-500.0,0.00010958,2]
[323527137,1714071039172,-500.0,0.00010958,2]
[323527138,1714071039181,-707.13,0.00010958,2]
[323527139,1714071039190,-500.0,0.00010958,2]
[323527140,1714071039199,-500.0,0.00010958,2]
[323527141,1714071039208,-500.0,0.00010958,2]
[323527142,1714071039217,-500.0,0.00010958,2]
[323527143,1714071039226,-500.0,0.00010958,2]
[323527144,1714071039235,-500.0,0.00010958,2]
[323527145,1714071039244,-500.0,0.00010958,2]
[323527146,1714071039252,-873.91,0.00010958,2]
[323527147,1714071039262,-655.18,0.00010958,2]
[323527148,1714071039271,-500.0,0.00010958,2]
[323527149,1714071039281,-500.0,0.00010958,2]
[323527150,1714071039290,-697.1,0.00010958,2]
[323527151,1714071039299,-500.0,0.00010958,2]
[323527152,1714071039309,-500.0,0.00010958,2]
[323527153,1714071039318,-500.0,0.00010958,2]
[323527154,1714071039327,-500.0,0.00010958,2]
[323527155,1714071039335,-500.0,0.00010958,2]
[323527156,1714071039345,-500.0,0.00010958,2]
[323527157,1714071039354,-500.0,0.00010958,2]
[323527158,1714071039363,-500.0,0.00010958,2]
[323527159,1714071039372,-500.0,0.00010958,2]
[323527160,1714071039382,-500.0,0.00010958,2]
[323527161,1714071039391,-500.0,0.00010958,2]
[323527162,1714071039400,-769.99,0.00010958,2]
[323527163,1714071039410,-586.62,0.00010958,2]
[323527164,1714071039419,-500.0,0.00010958,2]
[323527165,1714071039429,-500.0,0.00010958,2]
[323527166,1714071039438,-259.51,0.00010958,2]
[323527167,1714071039447,-500.0,0.00010958,2]
[323527168,1714071039457,-672.29,0.00010958,2]
[323527169,1714071039466,-500.0,0.00010958,2]
[323527170,1714071039475,-880.8,0.00010958,2]
[323527171,1714071039485,-500.0,0.00010958,2]
[323527172,1714071039498,-500.0,0.00010958,2]
[323527173,1714071039507,-667.59,0.00010958,2]
[323527174,1714071039516,-500.0,0.00010958,2]
[323527175,1714071039526,-512.43,0.00010958,2]
[323527176,1714071039537,-500.0,0.00010958,2]
[323527177,1714071039546,-150.0,0.00010958,2]
[323527178,1714071039556,-500.0,0.00010958,2]
[323527179,1714071039567,-500.0,0.00010958,2]
[323527180,1714071039576,-283.42,0.00010958,2]
[323527181,1714071039585,-550.22,0.00010958,2]
[323527182,1714071039594,-452.77457568,0.00010958,2]
[323527183,1714071039603,-500.0,0.00010958,2]
[323527184,1714071039613,-500.0,0.00010958,2]
[323527185,1714071039622,-500.0,0.00010958,2]
[323527186,1714071039631,-500.0,0.00010958,2]
[323527187,1714071039640,-500.0,0.00010958,2]
[323527188,1714071039650,-500.0,0.00010958,2]
[323527189,1714071039659,-500.0,0.00010958,2]
[323527190,1714071039668,-553.94,0.00010958,2]
[323527191,1714071039678,-500.0,0.00010958,2]
[323527192,1714071039687,-500.0,0.00010958,2]
[323527193,1714071039696,-500.0,0.00010958,2]
[323527194,1714071039706,-500.0,0.00010958,2]
[323527195,1714071039715,-195.38533114,0.00010958,2]
[323527196,1714071039724,-662.77,0.00010958,2]
[323527197,1714071039734,-500.0,0.00010958,2]
[323527198,1714071039743,-500.0,0.00010958,2]
[323527199,1714071039753,-500.0,0.00010958,2]
[323527200,1714071039763,-500.0,0.00010958,2]
[323527201,1714071039773,-721.74,0.00010958,2]
[323527202,1714071039782,-260.00035421,0.00010958,2]
[323527203,1714071039791,-841.6,0.00010958,2]
[323527204,1714071039800,-500.0,0.00010958,2]
[323527205,1714071039810,-550.03,0.00010958,2]
[323527206,1714071039820,-500.0,0.00010958,2]
[323527207,1714071039829,-500.0,0.00010958,2]
[323527208,1714071039838,-500.0,0.00010958,2]
[323527209,1714071039847,-500.0,0.00010958,2]
[323527210,1714071039857,-500.0,0.00010958,2]
[323527211,1714071039866,-775.82,0.00010958,2]
[323527212,1714071039875,-500.0,0.00010958,2]
[323527213,1714071039884,-500.0,0.00010958,2]
[323527214,1714071039894,-500.0,0.00010958,2]
[323527215,1714071039904,-500.0,0.00010958,2]
[323527216,1714071039914,-500.0,0.00010958,2]
[323527217,1714071039923,-4132.01,0.00010958,2]
[323527218,1714071039934,-4781.68,0.00010958,2]
[323527219,1714071039943,-523.126889,0.00010958,2]
[323527220,1714071039953,-500.0,0.00010958,2]
[323527221,1714071039962,-500.0,0.00010958,2]
[323527222,1714071039971,-500.0,0.00010958,2]
[323527223,1714071039981,-556.67,0.00010958,2]
[323527224,1714071039991,-500.0,0.00010958,2]
[323527225,1714071040000,-645.78,0.00010958,2]
[323527226,1714071040009,-3689.08,0.00010958,2]
[323527227,1714071040018,-983.92,0.00010958,2]
[323527228,1714071040028,-1721.31,0.00010958,2]
[323527229,1714071040037,-1072.92,0.00010958,2]
[323527230,1714071040046,-982.34,0.00010958,2]
[323527231,1714071040055,-500.0,0.00010958,2]
[323527232,1714071040065,-500.0,0.00010958,2]
[323527233,1714071040074,-500.0,0.00010958,2]
[323527234,1714071040083,-1854.29,0.00010958,2]
[323527235,1714071040092,-500.0,0.00010958,2]
[323527236,1714071040101,-500.0,0.00010958,2]
[323527237,1714071040110,-500.0,0.00010958,2]
[323527238,1714071040119,-500.0,0.00010958,2]
[323527239,1714071040128,-500.0,0.00010958,2]
[323527240,1714071040137,-8327.2,0.00010958,2]
[323527241,1714071040146,-500.0,0.00010958,2]
[323527242,1714071040155,-1131.15,0.00010958,2]
[323527243,1714071040164,-500.0,0.00010958,2]
[323527244,1714071040173,-18700.94,0.00010958,2]
[323527245,1714071040182,-500.0,0.00010958,2]
[323527246,1714071040192,-500.0,0.00010958,2]
[323527247,1714071040201,-500.0,0.00010958,2]
[323527248,1714071040210,-500.0,0.00010958,2]
[323527249,1714071040218,-500.0,0.00010958,2]
[323527250,1714071040228,-1293.68,0.00010958,2]
[323527251,1714071040237,-500.0,0.00010958,2]
[323527252,1714071040246,-702.22,0.00010958,2]
[323527253,1714071040255,-500.0,0.00010958,2]
[323527254,1714071040264,-500.0,0.00010958,2]
[323527255,1714071040273,-500.0,0.00010958,2]
[323527256,1714071040282,-1791.68,0.00010958,2]
[323527257,1714071040291,-7143.68,0.00010958,2]
[323527258,1714071040300,-500.0,0.00010958,2]
[323527259,1714071040310,-500.0,0.00010958,2]
[323527260,1714071040319,-500.0,0.00010958,2]
[323527261,1714071040328,-500.0,0.00010958,2]
[323527262,1714071040338,-945.54,0.00010958,2]
[323527263,1714071040347,-182.1,0.00010958,2]
[323527264,1714071040356,-500.0,0.00010958,2]
[323527265,1714071040365,-500.0,0.00010958,2]
[323527266,1714071040374,-722.8,0.00010958,2]
[323527267,1714071040383,-500.0,0.00010958,2]
[323527268,1714071040393,-500.0,0.00010958,2]
[323527269,1714071040402,-1313.86,0.00010958,2]
[323527270,1714071040412,-500.0,0.00010958,2]
[323527271,1714071040421,-500.0,0.00010958,2]
[323527272,1714071040431,-6092.4,0.00010958,2]
[323527273,1714071040440,-625.57,0.00010958,2]
[323527274,1714071040450,-500.0,0.00010958,2]
[323527275,1714071040459,-500.0,0.00010958,2]
[323527276,1714071040469,-500.0,0.00010958,2]
[323527277,1714071040479,-577.35,0.00010958,2]
[323527278,1714071040489,-500.0,0.00010958,2]
[323527279,1714071040502,-1352.06,0.00010958,2]
[323527280,1714071040511,-474.01220885,0.00010958,2]
[323527281,1714071040521,-977.13,0.00010958,2]
[323527282,1714071040530,-500.0,0.00010958,2]
[323527283,1714071040540,-500.0,0.00010958,2]
[323527284,1714071040550,-500.0,0.00010958,2]
[323527285,1714071040560,-1911.81,0.00010958,2]
[323527286,1714071040570,-786.72,0.00010958,2]
[323527287,1714071040580,-500.0,0.00010958,2]
[323527288,1714071040590,-500.0,0.00010958,2]
[323527289,1714071040599,-500.0,0.00010958,2]
[323527290,1714071040608,-500.0,0.00010958,2]
[323527291,1714071040618,-779.51,0.00010958,2]
[323527292,1714071040627,-500.0,0.00010958,2]
[323527293,1714071040637,-504.34618358,0.00010958,2]
[323527294,1714071040647,-22132.91,0.00010958,2]
[323527295,1714071040656,-500.0,0.00010958,2]
[323527296,1714071040666,-500.0,0.00010958,2]
[323527297,1714071040676,-500.0,0.00010958,2]
[323527298,1714071040686,-920.68,0.00010958,2]
[323527299,1714071040695,-1046.51,0.00010958,2]
[323527300,1714071040704,-2499.26,0.00010958,2]
[323527301,1714071040713,-500.0,0.00010958,2]
[323527302,1714071040723,-500.0,0.00010958,2]
[323527304,1714071040732,-500.0,0.00010958,2]
[323527306,1714071040741,-3796.0,0.00010958,2]
[323527307,1714071040750,-656.27,0.00010958,2]
[323527308,1714071040759,-500.0,0.00010958,2]
[323527309,1714071040769,-500.0,0.00010958,2]
[323527310,1714071040778,-917.86,0.00010958,2]
[323527311,1714071040788,-500.0,0.00010958,2]
[323527312,1714071040797,-727.65,0.00010958,2]
[323527313,1714071040808,-1061.04,0.00010958,2]
[323527314,1714071040817,-500.0,0.00010958,2]
[323527315,1714071040828,-682.39,0.00010958,2]
[323527316,1714071040837,-4368.13,0.00010958,2]
[323527317,1714071040846,-997.9,0.00010958,2]
[323527318,1714071040855,-1250.16,0.00010958,2]
[323527319,1714071040864,-500.0,0.00010958,2]
[323527320,1714071040874,-1295.12,0.00010958,2]
[323527321,1714071040883,-804.09,0.00010958,2]
[323527322,1714071040892,-801.02,0.00010958,2]
[323527323,1714071040902,-500.0,0.00010958,2]
[323527324,1714071040911,-2819.01,0.00010958,2]
[323527325,1714071040920,-500.0,0.00010958,2]
[323527326,1714071040929,-977.5,0.00010958,2]
[323527327,1714071040938,-500.0,0.00010958,2]
[323527328,1714071040947,-500.0,0.00010958,2]
[323527329,1714071040956,-500.0,0.00010958,2]
[323527330,1714071040966,-553.99,0.00010958,2]
[323527331,1714071040975,-500.0,0.00010958,2]
[323527332,1714071040985,-819.94,0.00010958,2]
[323527333,1714071040994,-500.0,0.00010958,2]
[323527334,1714071041003,-1420.99,0.00010958,2]
[323527335,1714071041012,-820.21,0.00010958,2]
[323527336,1714071041022,-922.82,0.00010958,2]
[323527337,1714071041031,-2659.68,0.00010958,2]
[323527338,1714071041040,-500.0,0.00010958,2]
[323527339,1714071041049,-500.0,0.00010958,2]
[323527340,1714071041059,-500.0,0.00010958,2]
[323527341,1714071041068,-500.0,0.00010958,2]
[323527342,1714071041078,-666.76,0.00010958,2]
[323527343,1714071041087,-500.0,0.00010958,2]
[323527344,1714071041096,-920.95,0.00010958,2]
[323527345,1714071041106,-837.73,0.00010958,2]
[323527346,1714071041115,-764.71,0.00010958,2]
[323527347,1714071041124,-675.69,0.00010958,2]
[323527348,1714071041134,-500.0,0.00010958,2]
[323527349,1714071041143,-748.77,0.00010958,2]
[323527350,1714071041153,-504.13,0.00010958,2]
[323527351,1714071041162,-500.0,0.00010958,2]
[323527352,1714071041171,-601.3,0.00010958,2]
[323527353,1714071041180,-500.0,0.00010958,2]
[323527354,1714071041190,-500.0,0.00010958,2]
[323527355,1714071041200,-500.0,0.00010958,2]
[323527356,1714071041209,-649.58,0.00010958,2]
[323527357,1714071041219,-500.0,0.00010958,2]
[323527358,1714071041229,-743.42,0.00010958,2]
[323527359,1714071041239,-1134.27,0.00010958,2]
[323527360,1714071041249,-784.56,0.00010958,2]
[323527361,1714071041259,-500.0,0.00010958,2]
[323527362,1714071041268,-2160.82,0.00010958,2]
[323527363,1714071041278,-845.59,0.00010958,2]
[323527364,1714071041287,-500.0,0.00010958,2]
[323527365,1714071041296,-3725.63,0.00010958,2]
[323527366,1714071041308,-500.0,0.00010958,2]
[323527367,1714071041317,-500.0,0.00010958,2]
[323527368,1714071041327,-3001.03,0.00010958,2]
[323527369,1714071041337,-2102.35,0.00010958,2]
[323527370,1714071041346,-500.0,0.00010958,2]
[323527371,1714071041355,-500.0,0.00010958,2]
[323527372,1714071041365,-500.0,0.00010958,2]
[323527373,1714071041375,-1267.7,0.00010958,2]
[323527374,1714071041384,-500.0,0.00010958,2]
[323527375,1714071041394,-500.0,0.00010958,2]
[323527376,1714071041404,-500.0,0.00010958,2]
[323527377,1714071041413,-500.0,0.00010958,2]
[323527378,1714071041422,-649.49,0.00010958,2]
[323527379,1714071041431,-1271.79,0.00010958,2]
[323527380,1714071041441,-639.66,0.00010958,2]
[323527381,1714071041450,-1507.93,0.00010958,2]
[323527382,1714071041460,-1998.88,0.00010958,2]
[323527383,1714071041469,-500.0,0.00010958,2]
[323527384,1714071041479,-1251.65,0.00010958,2]
[323527385,1714071041488,-2251.83,0.00010958,2]
[323527386,1714071041502,-500.0,0.00010958,2]
[323527387,1714071041512,-558.59,0.00010958,2]
[323527388,1714071041521,-500.0,0.00010958,2]
[323527389,1714071041531,-502.79,0.00010958,2]
[323527390,1714071041541,-500.0,0.00010958,2]
[323527391,1714071041550,-500.0,0.00010958,2]
[323527392,1714071041560,-795.95,0.00010958,2]
[323527393,1714071041570,-744.15,0.00010958,2]
[323527394,1714071041579,-3742.98,0.00010958,2]
[323527395,1714071041588,-500.0,0.00010958,2]
[323527396,1714071041597,-500.0,0.00010958,2]
[323527397,1714071041606,-2249.06,0.00010958,2]
[323527398,1714071041615,-2736.05,0.00010958,2]
[323527399,1714071041624,-1006.22,0.00010958,2]
[323527400,1714071041634,-500.0,0.00010958,2]
[323527401,1714071041643,-514.93,0.00010958,2]
[323527402,1714071041653,-500.0,0.00010958,2]
[323527403,1714071041663,-500.0,0.00010958,2]
[323527404,1714071041672,-500.0,0.00010958,2]
[323527405,1714071041681,-500.0,0.00010958,2]
[323527406,1714071041690,-500.0,0.00010958,2]
[323527407,1714071041699,-975.66,0.00010958,2]
[323527408,1714071041709,-1176.96,0.00010958,2]
[323527409,1714071041718,-780.41,0.00010958,2]
[323527410,1714071041727,-877.33,0.00010958,2]
[323527411,1714071041736,-993.85,0.00010958,2]
[323527412,1714071041745,-500.0,0.00010958,2]
[323527413,1714071041755,-500.0,0.00010958,2]
[323527414,1714071041764,-500.0,0.00010958,2]
[323527415,1714071041774,-420.92,0.00010958,2]
[323527416,1714071041783,-500.0,0.00010958,2]
[323527417,1714071041792,-601.36,0.00010958,2]
[323527418,1714071041802,-500.0,0.00010958,2]
[323527419,1714071041811,-150.0,0.00010959,2]
[323527420,1714071041820,-1845.93,0.00010959,3]
[323527421,1714071041830,-193.31828688,0.00010973,2]
[323527422,1714071041839,-193.31828688,0.00010999,2]
[323527423,1714071041848,-1743.09709085,0.00011,2]
[323527424,1714071041857,-193.31828688,0.00011026,2]
[323527425,1714071041866,-193.31828688,0.00011052,2]
[323527426,1714071041876,-193.31828688,0.00011079,2]
[323527427,1714071041885,-193.31828688,0.00011105,2]
[323527428,1714071041894,-193.31828688,0.00011132,2]
[323527429,1714071041904,-368.92034522,0.00011132,2]
[323527430,1714071041913,-1000.0,0.00011132,2]
[323527431,1714071041922,-10000.0,0.00011132,2]
[323527432,1714071041931,-7640.93916377,0.00011189,7]
[323527433,1714071041940,-1900.0,0.000112,4]
[323527434,1714071041950,-1200.0,0.000112,4]
[323527435,1714071041959,-209.87,0.0001122,2]
[323527436,1714071041968,-460.56213322,0.00011222,2]
[323527437,1714071041978,-1009.21,0.00011231,2]
[323527438,1714071041987,-593.53,0.00011231,2]
[323527439,1714071041996,-735.17,0.00011231,2]
[323527440,1714071042005,-500.0,0.00011231,2]
[323527441,1714071042015,-500.0,0.00011231,2]
[323527442,1714071042024,-1394.16,0.00011231,2]
[323527443,1714071042034,-617.14,0.00011231,2]
[323527444,1714071042043,-1411.66,0.00011231,2]
[323527445,1714071042053,-559.65,0.00011231,2]
[323527446,1714071042063,-523.01,0.00011231,2]
[323527447,1714071042072,-1171.84,0.00011231,2]
[323527448,1714071042082,-863.13,0.00011231,2]
[323527449,1714071042091,-500.0,0.00011231,2]
[323527450,1714071042100,-653.09,0.00011231,2]
[323527451,1714071042110,-1369.63,0.00011231,2]
[323527452,1714071042120,-753.77,0.00011231,2]
[323527453,1714071042129,-500.0,0.00011232,2]
[323527454,1714071042139,-500.0,0.00011232,2]